Cogmind - Beta 11.1 @@@ ROGUE MODE // 2022.04.22 @ 18:11:46 Player: Haldron Result: Self-destructed Performance ------------- Evolutions (3) 1500 Regions Visited (6) 1200 Robots Destroyed (140) 700 Value Destroyed (3217) 3217 Prototype IDs (6) 120 Alien Tech Used (0) 0 Bonus (367) 367 TOTAL SCORE: 7104 Bonus ------- High Alert Combat Kills 839 Follower Combat Kills 35 Friendly Fire -507 Cogmind --------- Core Integrity 391/700 Matter 293/300 Energy 290/290 System Corruption 4% Temperature Cool (0) Movement Hovering (290) Ox4 Location -7/Factory Parts ------- > --- POWER (1) -------- Improved Deuterium Engine > --- PROPULSION (4) --- Cooled Airjet > --- UTILITY (5) ------ Improved Cooling System Large Storage Unit Advanced Visual Processing Unit Advanced Targeting Computer Core Analyzer > --- WEAPON (3) ------- Missile Launcher > --- INVENTORY (15) --- Compact Wheel Cooled Airjet Sensor Array Improved Signal Interpreter Advanced Targeting Computer Improved Light Armor Plating Hacking Suite Authchip [R/NC] Authchip [Device] Drone Bay (2/2) Lightning Gun Assault Cannon Heavy Mace Peak State ------------ > --- POWER ------------ Improved Deuterium Engine > --- PROPULSION ------- Cooled Airjet Cooled Airjet Cooled Airjet Cooled Airjet > --- UTILITY ---------- Improved Cooling System Large Storage Unit Advanced Visual Processing Unit Advanced Targeting Computer Core Analyzer > --- WEAPON ----------- Cooled Particle Cannon Gauss Rifle Missile Launcher > --- INVENTORY -------- Heavy Ion Engine Improved Treads Improved Treads Armored Treads Armored Treads Compact Wheel Sensor Array Improved Signal Interpreter Advanced Targeting Computer Improved Light Armor Plating Authchip [R/NC] Authchip [Device] Drone Bay Ion Cannon Hammer [Rating: 55] Favorites ----------- Power Heavy Ion Engine Engine Heavy Ion Engine Propulsion Improved Treads Treads Improved Treads Leg Aluminum Leg Wheel Compact Wheel Hover Unit Cooled Airjet Utility Large Storage Unit Device Drone Bay Storage Large Storage Unit Processor Advanced Visual Processing Unit Protection Light Armor Plating Weapon Beam Rifle Energy Gun Beam Rifle Energy Cannon Beam Cannon Ballistic Gun Heavy Assault Rifle Launcher Missile Launcher Impact Weapon Hammer Build | -11 -10 -10 -9 -9 -9 -7 ------- Run | Scr Mat Min Mat Sto Rec Fac Slots Evolved 6 | . . . 2 . . 4 Power . | . . . . . . . Propulsion 2 | . . . . . . 2 Utility 3 | . . . 1 . . 2 Weapon 1 | . . . 1 . . . Parts Attached 92 | 5 14 6 4 23 5 35 Power 7 | 1 2 . 1 2 . 1 Engine 7 | 1 2 . 1 2 . 1 Core . | . . . . . . . Reactor . | . . . . . . . Propulsion 25 | 2 3 2 1 8 . 9 Treads 11 | . . . . 6 . 5 Leg 7 | 2 3 1 . 1 . . Wheel 1 | . . . . 1 . . Hover 6 | . . 1 1 . . 4 Flight . | . . . . . . . Utility 16 | . 3 1 1 4 1 6 Device 6 | . 2 . 1 2 . 1 Storage 2 | . 1 . . 1 . . Processor 4 | . . . . . . 4 Hackware . | . . . . . . . Protection 4 | . . 1 . 1 1 1 Artifact . | . . . . . . . Weapon 44 | 2 6 3 1 9 4 19 Energy Gun 13 | 1 5 1 . 2 . 4 Energy Cannon 7 | . . 1 . 1 . 5 Ballistic Gun 9 | 1 . . . 4 2 2 Ballistic Cannon . | . . . . . . . Launcher 11 | . 1 1 . 1 1 7 Special Weapon . | . . . . . . . Impact Weapon 4 | . . . 1 1 1 1 Slashing Weapon . | . . . . . . . Piercing Weapon . | . . . . . . . Special Melee Weapon . | . . . . . . . Unidentified Prototypes 4 | . . . . 2 . 2 Parts Lost 20 | . 4 6 1 . . 9 Power 1 | . . 1 . . . . Propulsion 8 | . 1 2 1 . . 4 Utility 1 | . . 1 . . . . Weapon 10 | . 3 2 . . . 5 Highest Loss Streak 6 | . 2 6 1 . . 5 To Critical Strikes . | . . . . . . . Average Slot Usage (%) 97 | . 96 75 66 99 100 98 Engine 10 | . 14 7 6 11 11 7 Treads 15 | . . . . 15 22 22 Leg 6 | . 27 19 4 . . . Hover 2 | . . 4 15 . . 7 Device 9 | . 11 8 4 11 11 4 Storage 10 | . 13 8 . 10 11 7 Processor 5 | . . . . . . 20 Protection 7 | . . 3 11 11 11 4 Energy Gun 17 | . 21 19 11 17 22 9 Energy Cannon 1 | . . 3 11 4 . 2 Ballistic Gun 6 | . 6 . . 6 9 5 Launcher 1 | . . . . . . 3 Naked Turns 31 | . . 31 . . . . Heaviest Build 50 | 7 31 31 15 47 47 50 Greatest Support 92 | 20 20 20 12 46 46 92 Greatest Overweight (x) 5 | . 2 2 2 2 1 5 Average Overweight (x) . | . . . . 1 . . Largest Inventory Capacity 15 | 5 15 15 5 15 15 15 Average Capacity 14 | 5 14 10 5 14 15 15 Most Carried 15 | 4 15 15 5 15 15 15 Average Carried 13 | 2 11 10 3 13 14 14 Final Capacity 15 | 5 15 5 5 15 15 15 Final Carried 15 | 4 15 4 3 15 15 13 Class Distribution -------------------- 27% | Mutant 25% | Commander-Tank 15% | Scavenger-Gunner 14% | Scavenger-Tank 14% | Scavenger-Mutant Dominant Class ---------------- Scavenger-Mutant | -10/Materials Mutant | -10/Mines Mutant | -9/Materials Scavenger-Tank | -9/Storage Commander-Tank | -9/Recycling Scavenger-Gunner | -7/Factory Resources | -11 -10 -10 -9 -9 -9 -7 ----------- Run | Scr Mat Min Mat Sto Rec Fac Matter Collected 2127 | 277 359 54 25 460 150 802 Remotely . | . . . . . . . Salvage Created 4914 | 113 949 4 57 1550 675 1566 Parts 268 | 9 55 . 6 70 41 87 Haulers Intercepted 8 | . 2 . . 5 . 1 Recyclers Shooed 14 | . 5 . . 3 4 2 Parts Field Recycled . | . . . . . . . Retrieved Matter . | . . . . . . . Parts Self-Destructed . | . . . . . . . Prevented . | . . . . . . . Kills | -11 -10 -10 -9 -9 -9 -7 ------- Run | Scr Mat Min Mat Sto Rec Fac Combat Hostiles Destroyed 80 | 1 14 1 1 16 11 36 Guns 45 | 1 11 . . 11 11 11 Cannons 12 | . . . 1 4 . 7 AOE 21 | . 3 1 . . . 17 Classes Destroyed 15 | 3 6 1 . 1 1 3 Worker 11 | 1 5 . . . . 5 Builder 9 | . 4 . . 2 . 3 Tunneler 4 | 4 . . . . . . Hauler 8 | . 2 . . 5 . 1 Recycler 16 | . 2 . . 6 7 1 Mechanic 2 | . . . . . . 2 Operator 3 | . 1 . . 2 . . Drone 13 | . . . . . 12 1 Watcher 6 | . 1 . 1 2 . 2 Swarmer 15 | . 3 . . . 1 11 Grunt 34 | 1 11 . 1 8 . 13 Sentry 11 | . . . . 8 1 2 Hunter 6 | . . . . . . 6 Programmer 4 | . . . . . . 4 Assembled 1 | . . 1 . . . . Best Kill Streak 12 | 5 7 1 2 5 3 12 Combat Bots Only 8 | 1 5 1 1 2 1 8 Max Kills in Single Turn 3 | 1 3 1 1 1 2 3 Gunslinging . | . . . . . . . Exploded 3 | . 3 1 . . . 3 Melee . | . . . . . . . Uniques/NPCs Destroyed . | . . . . . . . Combat | -11 -10 -10 -9 -9 -9 -7 -------- Run | Scr Mat Min Mat Sto Rec Fac Damage Taken 4544 | . 720 441 257 255 45 2826 Core 605 | . 89 127 42 38 . 309 Absorbed by Shields 2 | . . . . . 2 . Redirected to Shielding 10 | . . . 10 . . . Regen/Repaired (Parts) 217 | . . . . . . 217 Core Remaining (%) 64 | 100 . 13 . . 80 . Volleys Fired 283 | 9 75 2 2 70 41 84 Largest 3 | 2 2 2 2 3 3 3 Hottest 142 | 60 115 80 110 135 135 142 Shots Fired 650 | 18 148 3 4 175 118 184 Gun 549 | 18 147 1 2 141 118 122 Cannon 72 | . . . 2 33 . 37 Launcher 29 | . 1 2 . 1 . 25 Special . | . . . . . . . Kinetic 171 | 9 42 . . 37 36 47 Thermal 421 | . 85 1 4 137 82 112 Explosive 28 | . 1 2 . . . 25 Electromagnetic 30 | 9 20 . . 1 . . Robot Hit Streak 19 | 4 11 . 4 19 6 14 Robot Miss Streak 10 | 1 5 . . 4 10 3 Penetration Max 1 | . . . . . . 1 Secondary Targets 3 | . 3 . . . . . Max Gunslinging Chain 1 | . 1 . . . . . Shots Hit Robots 365 | 11 95 . 3 98 42 116 Core Hits 226 | 6 40 12 2 43 25 98 Critical Kills 3 | . . . . 1 . 2 Critical Parts Destroyed . | . . . . . . . Critical Strikes 29 | . 3 . . 10 5 11 Burn 26 | . 3 . . 9 5 9 Meltdown 1 | . . . . 1 . . Destroy 2 | . . . . . . 2 Melee Attacks 29 | . . . 1 13 4 11 Impact 29 | . . . 1 13 4 11 Slashing . | . . . . . . . Piercing . | . . . . . . . Sneak Attacks . | . . . . . . . Combat Hostiles . | . . . . . . . Follow-up Attacks . | . . . . . . . Damage Inflicted 9129 | 183 1591 212 45 1522 798 4778 Guns 4751 | 143 1337 . 27 1048 792 1404 Cannons 1293 | . . . 18 474 . 801 Explosions 3079 | 40 254 212 . . . 2573 Melee . | . . . . . . . Ramming 6 | . . . . . 6 . Kinetic 1347 | 78 363 . . 204 227 475 Thermal 4580 | 40 882 . 45 1318 565 1730 Explosive 2896 | . 111 212 . . . 2573 Electromagnetic 300 | 65 235 . . . . . Impact . | . . . . . . . Slashing . | . . . . . . . Piercing . | . . . . . . . Highest Corruption 5 | . . 5 . . . 4 Average Corruption 2 | . . 5 . . . 1 Corruption Purged . | . . . . . . . Corruption Blocked . | . . . . . . . Effects 13 | . . 4 . . . 9 Message Errors 5 | . . 2 . . . 3 Matter Fused 3 | . . 1 . . . 2 Energy Discharges 2 | . . 1 . . . 1 Data Loss (minor) 1 | . . . . . . 1 Data Loss (major) 1 | . . . . . . 1 Weapon Failures 1 | . . . . . . 1 Overload Shots 2 | . . . . . . 2 Overflow Damage 135 | . 13 . . 3 . 119 Projectiles 12 | . . . . 3 . 9 Explosions 123 | . 13 . . . . 110 Melee . | . . . . . . . Knockbacks . | . . . . . . . Impact . | . . . . . . . Kinetic . | . . . . . . . Secondary . | . . . . . . . Self-Inflicted Damage 202 | . 97 . . . . 105 Shots 7 | . 3 . . . . 4 Rammed 1 | . . . . . 1 . Targets Rammed 1 | . . . . . 1 . Kicked . | . . . . . . . Crushed . | . . . . . . . Highest Temperature 412 | . 216 . 54 412 234 404 Average Temperature 80 | . 37 . 28 98 66 118 Received Heat Transfer 1061 | . 321 60 90 81 17 492 Effects 2 | . . . . 1 . 1 Shutdowns 2 | . . . . 1 . 1 Siege Activations . | . . . . . . . Robots Corrupted . | . . . . . . . Combat Hostiles . | . . . . . . . Parts Fried 3 | 1 2 . . . . . Impact Corruptions . | . . . . . . . Robots Melted 3 | . . . . 2 . 1 Combat Hostiles 2 | . . . . 1 . 1 Parts Melted 37 | . 2 . . 22 3 10 Heat Transferred 12316 | 100 2385 . 111 3885 1813 4022 Parts Sabotaged . | . . . . . . . Parts Stolen . | . . . . . . . Parts Stripped . | . . . . . . . Power Chain Reactions 3 | 1 2 . . . . . Missiles Intercepted . | . . . . . . . Alert | -11 -10 -10 -9 -9 -9 -7 ------- Run | Scr Mat Min Mat Sto Rec Fac Peak Influence 1267 | 45 283 73 86 380 470 1267 Initial 1089 | . 29 70 6 35 94 1089 Average 393 | 14 139 53 49 173 232 1036 Maximum Alert Level 4 | . 1 . . 1 2 4 Low Security (%) 50 | 100 83 100 100 63 53 . Level 1 18 | . 16 . . 36 27 . Level 2 7 | . . . . . 18 4 Level 3 10 | . . . . . . 43 Level 4 12 | . . . . . . 51 Level 5 . | . . . . . . . High Security . | . . . . . . . Max Security . | . . . . . . . Squads Dispatched 19 | . 3 . 1 5 . 10 Investigation 5 | . 2 . . 3 . . Extermination 2 | . . . . . . 2 Reinforcement 7 | . 1 . 1 2 . 3 Assault 1 | . . . . . . 1 Garrison 4 | . . . . . . 4 Intercept . | . . . . . . . Searches Triggered 3 | . . . . . . 3 Construction Impeded 1 | . . . . . . 1 Haulers Reinforced . | . . . . . . . Active Scanning Responses . | . . . . . . . Cargo Convoy Interrupts 1 | . . . . . . 1 Stealth | -11 -10 -10 -9 -9 -9 -7 --------- Run | Scr Mat Min Mat Sto Rec Fac Distress Signals 5 | . . . 1 4 . . Communications Jammed . | . . . . . . . Distress Signals . | . . . . . . . Times Spotted 184 | 1 25 23 10 24 46 55 Peak Tracking Total 20 | 1 4 20 6 3 4 10 Tactical Retreats 13 | . 2 3 1 5 . 2 Traps | -11 -10 -10 -9 -9 -9 -7 ------- Run | Scr Mat Min Mat Sto Rec Fac Traps Triggered 3 | . 1 . . 2 . . Indirectly 1 | . . . . 1 . . Trap Hack Attempts . | . . . . . . . Triggered . | . . . . . . . Disarmed . | . . . . . . . Reprogrammed . | . . . . . . . Reused . | . . . . . . . Traps Extracted . | . . . . . . . Installed . | . . . . . . . Triggered 1 | . 1 . . . . . Machines | -11 -10 -10 -9 -9 -9 -7 ---------- Run | Scr Mat Min Mat Sto Rec Fac Machines Disabled 7 | . 2 . . 2 3 . Max in Single Turn 2 | . 2 . . 1 1 . Machines Sabotaged . | . . . . . . . Garrisons Compromised . | . . . . . . . Overloaded Fab Kills . | . . . . . . . Hacking | -11 -10 -10 -9 -9 -9 -7 --------- Run | Scr Mat Min Mat Sto Rec Fac Machines Accessed 30 | . 5 . . 7 12 6 Terminals 17 | . 4 . . 5 5 3 Fabricators . | . . . . . . . Repair Stations 1 | . . . . . . 1 Recycling Units 10 | . 1 . . 2 7 . Scanalyzers 1 | . . . . . . 1 Garrison Access 1 | . . . . . . 1 Total Hacks 69 | . 15 . . 16 22 16 Successful 37 | . 5 . . 9 15 8 Failed 31 | . 9 . . 7 7 8 Catastrophic 5 | . 1 . . 1 . 3 Database Lockouts 1 | . 1 . . . . . Manual 37 | . 11 . . 7 13 6 Terminals 48 | . 14 . . 13 15 6 Fabricators . | . . . . . . . Repair Stations 7 | . . . . . . 7 Recycling Units 11 | . 1 . . 3 7 . Scanalyzers 2 | . . . . . . 2 Garrison Access 1 | . . . . . . 1 Terminal Hacks 19 | . 4 . . 7 8 . Robot Schematic 3 | . . . . . 3 . Robot Analysis 2 | . 2 . . . . . Prototype ID Bank 1 | . . . . 1 . . Open Door 1 | . . . . 1 . . Branch Access Points 1 | . . . . . 1 . Terminal Index 2 | . . . . 1 1 . Alert Level 2 | . . . . . 2 . Unreport Threat 2 | . . . . 1 1 . Locate Traps 4 | . 1 . . 3 . . Zone Layout 1 | . 1 . . . . . Fabricator Hacks . | . . . . . . . Repair Station Hacks 6 | . . . . . . 6 Scan Component 3 | . . . . . . 3 Repair 3 | . . . . . . 3 Recycling Unit Hacks . | . . . . . . . Scanalyzer . | . . . . . . . Garrison Access Hacks . | . . . . . . . Unauthorized Hacks 12 | . 1 . . 2 7 2 Terminals 2 | . . . . . . 2 Botnet 2 | . . . . . . 2 Fabricators . | . . . . . . . Repair Stations . | . . . . . . . Recycling Units 10 | . 1 . . 2 7 . Recyclers 1 | . 1 . . . . . Tunnel 9 | . . . . 2 7 . Scanalyzers . | . . . . . . . Garrison Access . | . . . . . . . Data Cores Recovered . | . . . . . . . Used . | . . . . . . . Hacking Detections 20 | . 4 . . 5 5 6 Full Trace Events 2 | . 1 . . 1 . . Feedback Events . | . . . . . . . Feedback Blocked . | . . . . . . . Robot Schematics Acquired 3 | . . . . . 3 . Robots Built . | . . . . . . . Authchips . | . . . . . . . Time . | . . . . . . . Total Robot Build Rating . | . . . . . . . Part Schematics Acquired . | . . . . . . . Parts Built . | . . . . . . . Authchips . | . . . . . . . Time . | . . . . . . . Total Part Build Rating . | . . . . . . . Parts Repaired 3 | . . . . . . 3 Time 114 | . . . . . . 114 Parts Recycled . | . . . . . . . Recycled Matter . | . . . . . . . Retrieved Matter . | . . . . . . . Retrieved Components . | . . . . . . . Parts Scanalyzed . | . . . . . . . Part Schematics Acquired . | . . . . . . . Parts Damaged . | . . . . . . . Bothacking | -11 -10 -10 -9 -9 -9 -7 ------------ Run | Scr Mat Min Mat Sto Rec Fac Used RIF Installer . | . . . . . . . Robots Hacked . | . . . . . . . Non-combat . | . . . . . . . Combat . | . . . . . . . Robot Hacks Applied . | . . . . . . . Relay Couplers Released . | . . . . . . . Fabnet Peak Effective % . | . . . . . . . Robots Rewired 11 | . . . . . 11 . Allies Hacked . | . . . . . . . Hacks Repelled . | . . . . . . . Allies | -11 -10 -10 -9 -9 -9 -7 -------- Run | Scr Mat Min Mat Sto Rec Fac Total Allies 13 | . . 2 . . 11 . Largest Group 10 | . . 2 . . 10 1 Highest-Rated Group 98 | . . 42 . . 98 21 Highest-Rated Ally 31 | . . 31 . . 27 21 Total Orders 15 | . . . . . 15 . STAY 1 | . . . . . 1 . FOLLOW 4 | . . . . . 4 . AID 2 | . . . . . 2 . DROP 2 | . . . . . 2 . PICKUP 3 | . . . . . 3 . COLLECT 1 | . . . . . 1 . EXPLORE 2 | . . . . . 2 . Ally Attacks 392 | . . 2 . . 387 3 Total Damage 2404 | . . 42 . . 2283 79 Kills 73 | . . . . . 72 1 Allies Corrupted . | . . . . . . . Allies Melted . | . . . . . . . Intel | -11 -10 -10 -9 -9 -9 -7 ------- Run | Scr Mat Min Mat Sto Rec Fac Robot Analysis Total 2 | . 2 . . . . . Derelict Logs Recovered 2 | . . 2 . . . . Drone Launches 2 | . . . . 2 . . Drone Recoveries . | . . . . . . . Exploration | -11 -10 -10 -9 -9 -9 -7 ------------- Run | Scr Mat Min Mat Sto Rec Fac Turns Passed 7557 | 141 1454 243 70 1251 2517 1881 Spaces Moved 3518 | 94 613 229 61 585 957 979 Core 85 | 15 . 70 . . . . Treads 1840 | . . . . 274 957 609 Legs 789 | 79 613 67 . 30 . . Wheels 281 | . . . . 281 . . Hover 523 | . . 92 61 . . 370 Flight . | . . . . . . . Fastest Speed 50 | 50 120 50 56 130 160 98 Average Speed 154 | 108 188 99 91 155 166 142 Slowest Speed 350 | 120 260 260 180 240 240 350 Overloaded Moves . | . . . . . . . Propulsion Burnouts . | . . . . . . . Robots Hopped . | . . . . . . . Cave-ins Triggered . | . . . . . . . Exploration Rate (%) 44 | 6 80 45 8 53 99 17 Regions Visited 6 Branch Regions 3 Pre-discovered Areas 9 | . . . . 2 7 . Known Exits Taken 1 | . . . 1 . . . Unknown Exits Taken 5 | 1 1 1 . 1 1 . Scrap Searched 2 | . . 2 . . . . Spaces Dug 39 | . . . 1 4 . 34 Terrain Destroyed 232 | 4 14 1 1 4 . 208 Melee 5 | . . . 1 4 . . Projectile . | . . . . . . . AOE 227 | 4 14 1 . . . 208 Terrain Rammed . | . . . . . . . Walls Destroyed . | . . . . . . . Machines Disabled . | . . . . . . . Actions | -11 -10 -10 -9 -9 -9 -7 --------- Run | Scr Mat Min Mat Sto Rec Fac Total 5020 | 112 764 242 69 763 1784 1286 Wait 781 | . 38 . . 21 584 138 Move 3512 | 93 612 228 60 584 956 979 Hop . | . . . . . . . Pick Up 72 | 5 16 3 . 26 7 15 Fast Attach 31 | 4 5 3 3 7 . 9 Attach 17 | 1 2 2 1 2 . 9 Detach 8 | . 1 . 1 2 . 4 Swap 44 | . 7 1 . 14 5 17 Drop 62 | . 8 3 1 23 7 20 Fire 283 | 9 75 2 2 70 41 84 Melee 29 | . . . 1 13 4 11 Ram . | . . . . . . . Kick . | . . . . . . . Crush 1 | . . . . . 1 . Escape Stasis . | . . . . . . . Rewire 179 | . . . . . 179 . Trap . | . . . . . . . Miscellaneous 1 | . . . . 1 . . Route ------- -11/Scrapyard -10/Materials (discovered 3 exits: [*Mat x2] / [*Min]) -10/Mines (discovered 2 exits: [*Mat x2]) -9/Materials (discovered 3 exits: Mat x2 / *Sto) -9/Storage -9/Recycling -7/Factory (discovered 1 exit: [*Fac]) History --------- Turn | Location | Event 2 | -11/Scrapyard | Met Revision 17 81 | -11/Scrapyard | Discovered new exit (range 8) 142 | -11/Scrapyard | Entered Materials 302 | -10/Materials | Build established: Mutant 608 | -10/Materials | Discovered new exit (range 7) 732 | -10/Materials | Build established: Scavenger-Mutant 1035 | -10/Materials | Discovered new exit (range 9) 1342 | -10/Materials | Central database locked down 1400 | -10/Materials | Discovered new exit (range 15) 1596 | -10/Materials | Entered Mines 1608 | -10/Mines | Learned location of 1 exit from Materials 1625 | -10/Mines | Build established: Mutant 1718 | -10/Mines | Assembled infested the area 1731 | -10/Mines | Core integrity fell below 50% 1737 | -10/Mines | Core integrity fell below 20% 1752 | -10/Mines | Discovered new exit (range 14) 1767 | -10/Mines | Lost 6 parts (1p2n1u2w) 1832 | -10/Mines | Learned 2 Materials zone layouts 1834 | -10/Mines | Discovered new exit (range 9) 1839 | -10/Mines | Entered Materials 1839 | -9/Materials | Evolved 2 slots: Utility x1, Weapon x1 1840 | -9/Materials | Identified exit to Materials 1841 | -9/Materials | Identified exit to Storage 1909 | -9/Materials | Entered Storage 2696 | -9/Storage | Build established: Scavenger-Tank 3157 | -9/Storage | Used back door to open Recycling access 3157 | -9/Storage | Discovered new exit (range 3) 3160 | -9/Storage | Entered Recycling 3160 | -9/Recycling | Accompanied by 2 allies 3249 | -9/Recycling | Spotter reported a threat 3250 | -9/Recycling | Spotter reported a threat 3276 | -9/Recycling | Spotter reported a threat 3309 | -9/Recycling | Spotter reported a threat 3316 | -9/Recycling | Spotter reported a threat 3320 | -9/Recycling | Spotter reported a threat 3339 | -9/Recycling | Spotter reported a threat 3339 | -9/Recycling | Spotter reported a threat 3343 | -9/Recycling | Spotter reported a threat 3373 | -9/Recycling | Spotter reported a threat 3392 | -9/Recycling | Spotter reported a threat 3396 | -9/Recycling | Spotter reported a threat 3438 | -9/Recycling | Spotter reported a threat 3445 | -9/Recycling | Spotter reported a threat 3445 | -9/Recycling | Spotter reported a threat 3449 | -9/Recycling | Spotter reported a threat 3502 | -9/Recycling | Spotter reported a threat 3509 | -9/Recycling | Spotter reported a threat 3511 | -9/Recycling | Spotter reported a threat 3533 | -9/Recycling | Spotter reported a threat 3574 | -9/Recycling | Spotter reported a threat 3598 | -9/Recycling | Spotter reported a threat 3637 | -9/Recycling | Spotter reported a threat 3640 | -9/Recycling | Spotter reported a threat 3666 | -9/Recycling | Spotter reported a threat 3690 | -9/Recycling | Spotter reported a threat 3691 | -9/Recycling | Spotter reported a threat 3692 | -9/Recycling | Spotter reported a threat 3788 | -9/Recycling | Spotter reported a threat 3864 | -9/Recycling | Spotter reported a threat 3864 | -9/Recycling | Spotter reported a threat 3865 | -9/Recycling | Spotter reported a threat 3876 | -9/Recycling | Build established: Commander-Tank 3889 | -9/Recycling | Spotter reported a threat 3917 | -9/Recycling | Spotter reported a threat 3917 | -9/Recycling | Spotter reported a threat 3917 | -9/Recycling | Spotter reported a threat 3948 | -9/Recycling | Spotter reported a threat 3959 | -9/Recycling | Spotter reported a threat 3975 | -9/Recycling | Spotter reported a threat 3998 | -9/Recycling | Spotter reported a threat 4012 | -9/Recycling | Spotter reported a threat 4029 | -9/Recycling | Spotter reported a threat 4043 | -9/Recycling | Spotter reported a threat 4075 | -9/Recycling | Spotter reported a threat 4096 | -9/Recycling | Spotter reported a threat 4143 | -9/Recycling | Spotter reported a threat 4144 | -9/Recycling | Spotter reported a threat 4149 | -9/Recycling | Spotter reported a threat 4151 | -9/Recycling | Spotter reported a threat 4195 | -9/Recycling | Spotter reported a threat 4202 | -9/Recycling | Spotter reported a threat 4235 | -9/Recycling | Spotter reported a threat 4239 | -9/Recycling | Discovered new exit (range 73) 4248 | -9/Recycling | Spotter reported a threat 4267 | -9/Recycling | Spotter reported a threat 4288 | -9/Recycling | Spotter reported a threat 4301 | -9/Recycling | Spotter reported a threat 4354 | -9/Recycling | Spotter reported a threat 4355 | -9/Recycling | Spotter reported a threat 4393 | -9/Recycling | Spotter reported a threat 4401 | -9/Recycling | Spotter reported a threat 4408 | -9/Recycling | Spotter reported a threat 4408 | -9/Recycling | Spotter reported a threat 4454 | -9/Recycling | Spotter reported a threat 4497 | -9/Recycling | Spotter reported a threat 4497 | -9/Recycling | Spotter reported a threat 4497 | -9/Recycling | Spotter reported a threat 4507 | -9/Recycling | Spotter reported a threat 4550 | -9/Recycling | Spotter reported a threat 4551 | -9/Recycling | Spotter reported a threat 4597 | -9/Recycling | Spotter reported a threat 4598 | -9/Recycling | Spotter reported a threat 4598 | -9/Recycling | Spotter reported a threat 4604 | -9/Recycling | Spotter reported a threat 4656 | -9/Recycling | Spotter reported a threat 4660 | -9/Recycling | Spotter reported a threat 4712 | -9/Recycling | Spotter reported a threat 4712 | -9/Recycling | Spotter reported a threat 4712 | -9/Recycling | Spotter reported a threat 4765 | -9/Recycling | Spotter reported a threat 4768 | -9/Recycling | Spotter reported a threat 4774 | -9/Recycling | Spotter reported a threat 4786 | -9/Recycling | Spotter reported a threat 4808 | -9/Recycling | Spotter reported a threat 4808 | -9/Recycling | Spotter reported a threat 4852 | -9/Recycling | Spotter reported a threat 4861 | -9/Recycling | Spotter reported a threat 4868 | -9/Recycling | Spotter reported a threat 4871 | -9/Recycling | Spotter reported a threat 4914 | -9/Recycling | Spotter reported a threat 4921 | -9/Recycling | Spotter reported a threat 4954 | -9/Recycling | Spotter reported a threat 4969 | -9/Recycling | Spotter reported a threat 4974 | -9/Recycling | Spotter reported a threat 5022 | -9/Recycling | Spotter reported a threat 5050 | -9/Recycling | Spotter reported a threat 5074 | -9/Recycling | Spotter reported a threat 5101 | -9/Recycling | Spotter reported a threat 5101 | -9/Recycling | Spotter reported a threat 5120 | -9/Recycling | Spotter reported a threat 5127 | -9/Recycling | Spotter reported a threat 5152 | -9/Recycling | Spotter reported a threat 5193 | -9/Recycling | Spotter reported a threat 5203 | -9/Recycling | Spotter reported a threat 5203 | -9/Recycling | Spotter reported a threat 5254 | -9/Recycling | Spotter reported a threat 5254 | -9/Recycling | Spotter reported a threat 5256 | -9/Recycling | Spotter reported a threat 5256 | -9/Recycling | Spotter reported a threat 5305 | -9/Recycling | Spotter reported a threat 5305 | -9/Recycling | Spotter reported a threat 5305 | -9/Recycling | Spotter reported a threat 5305 | -9/Recycling | Spotter reported a threat 5358 | -9/Recycling | Spotter reported a threat 5360 | -9/Recycling | Spotter reported a threat 5360 | -9/Recycling | Spotter reported a threat 5413 | -9/Recycling | Spotter reported a threat 5422 | -9/Recycling | Spotter reported a threat 5448 | -9/Recycling | Spotter reported a threat 5458 | -9/Recycling | Spotter reported a threat 5466 | -9/Recycling | Spotter reported a threat 5475 | -9/Recycling | Spotter reported a threat 5503 | -9/Recycling | Spotter reported a threat 5516 | -9/Recycling | Spotter reported a threat 5516 | -9/Recycling | Spotter reported a threat 5553 | -9/Recycling | Spotter reported a threat 5564 | -9/Recycling | Spotter reported a threat 5569 | -9/Recycling | Spotter reported a threat 5606 | -9/Recycling | Spotter reported a threat 5611 | -9/Recycling | Spotter reported a threat 5662 | -9/Recycling | Spotter reported a threat 5677 | -9/Recycling | Entered Factory 5677 | -7/Factory | Accompanied by 2 allies 5677 | -7/Factory | Evolved 4 slots: Propulsion x2, Utility x2 5975 | -7/Factory | Build established: Scavenger-Gunner 6077 | -7/Factory | Search patrols dispatched 6140 | -7/Factory | Garrison activated, responded to threat 6264 | -7/Factory | Garrison activated, responded to threat 6358 | -7/Factory | Repaired Drone Bay 6391 | -7/Factory | Repaired Beam Rifle 6424 | -7/Factory | Repaired Beam Rifle 6477 | -7/Factory | Search patrols dispatched 6877 | -7/Factory | Search patrols dispatched 6911 | -7/Factory | Cargo convoy interrupted 7001 | -7/Factory | Destroyed 8 combat bots 7006 | -7/Factory | Lost 3 parts (1n2w) 7277 | -7/Factory | First assault squad dispatched 7354 | -7/Factory | Build established: Mutant 7536 | -7/Factory | Discovered new exit (range 17) 7558 | -7/Factory | Self-destructed Last Messages --------------- 07515_ U-05 Engineer builds a Wall. 07517_ L-41 Fighter destroyed. 07525_ U-05 Engineer builds a Wall. 07525_ Missile Launcher destroyed. 07536_ EXIT=FOUND 07539_ Slug penetrates Wall. 07549_ H-61 Shepherd calls for reinforcements. 07549_ ALERT: Hostile activity reported, dispatching reinforcements to area. 07549_ Cld. Airjet destroyed. 07549_ Knocked back. 07554_ Cld. Airjet destroyed. 07554_ Knocked back. 07555_ Acquired 4 matter. 07556_ Knocked back. 07556_ U-05 Engineer builds a Wall. 07557_ Ion Cannon destroyed. 07557_ System corrupted by crushing effect (+2). 07558_ Knocked back. [Achievement: 5k Club] Map ----- +----------------------------------------------------+ | ?????????????????????????????????????????????????? | | ?????????????????????????????????????????????????? | | ?????????????????????????????????????????????????? | | ?????????????????????????????????????????????????? | | ?????????????????????????????????????????????????? | | ?????????????????????????????????????????????????? | | ?????????????????????????????????????????????????? | | ?????????????????????????????????????????????????? | | ?????????????????????????????????????????????????? | | ?????????????????????????????????????????????????? | | ?????????????????????????????????????????????????? | | ?????????????????????????????????????????????????? | | ?????????????????????????????????????????????????? | | ?????????????????????????????????????????????????? | | ?????????????????????????????????????????????????? | | ?????????????????????????????????????????????????? | | ?????????????????????????????????????????????????? | | ?????????????????????????????????????????????????? | | ?????????????????????????????????????????????????? | | ?????????????????????????????????????????????????? | | ????????????????????#############????????????????? | | ????????????????????# #????????????????? | | ????????????????????#""" """" #????????????????? | | ????????????????????#"F" """" #????????????????? | | ???????????????????##" """"g#????????????#???? | | ??????????????????## """%@ """" #??????????? #???? | | ??????????????????# """ g #?????????? #???? | | ??????????????????# b g #????????? #???? | | ??????????????????# #####/########### #???? | | ???????????? < H #???? | | ??????????????# ########## #???? | | ??????????????## ??????????# #???? | | ???????????????????????????# #???? | | ???????????????????????????# #???? | | ???????????????????????????# #############???? | | ?????????????????#####+##### #???????????????? | | ????????????? #???????????????? | | ?????????????????######### #???????????????? | | ?????????????????????????# #???????????????? | | ?????????????????????????# #???????????????? | | ?????????????????????????# #???????????????? | | ??????????????????????#### #???????????????? | | ????????????????????? / #???????????????? | | ??????????????????""" ########/#######???????????? | | ???????????????????????# /% #???????????? | | ???????????????????????# !=[ #???????????? | | ???????????????????????# #???????????? | | ???????????????????????# #???????????? | | ???????????????????????# #???????????? | | ???????????????????????# #???????????? | +----------------------------------------------------+ Best States ------------- Heat Dissipation 61 Energy Generation 16 Energy Capacity 290 Matter Stores 300 Matter Capacity 300 Sight Range 20 Terrain Scan Density 10 ECM Strength 1 Armor Coverage 150 Power Shielding 33 Evasion (%) 55 Targeting Accuracy 8 Core Analysis 6 Recoil Reduction 4 Authchip Count 3 Item Schematics ----------------- None Robot Schematics ------------------ G-34 Mercenary | -9/Recycling | Hacked A-02 Transporter | -9/Recycling | Hacked T-07 Excavator | -9/Recycling | Hacked Fabricated ------------ Nothing Alien Tech Used ----------------- None Achievements -------------- 5k Club A New Friend Backstab Brute Force Crack Shot Everything Is Under Control Hey, That's Mine! Hunted I Survived The Infestation It's Just You Loot Pinata Made in Tau Ceti IV Novice Programmer One Hack Too Far Part-time Mechanic Please Form A Line Remodeling Risk Taker Serviceable Loadout Significant Disruption Slippery One Storm Trooper The More The Merrier Tourist Troublemaker True Hacker Uninvited Guest \\IAMDERELICT root@ Challenges ------------ None Game ------ Seed ModifiedUltimateModule Manual? 0 Play Time 01:34:56 Cumulative 3.0 hours Start 2022.04.22 @ 16:31:23 End 2022.04.22 @ 18:11:46 Sessions 2 Manual Loads 0 Difficulty Rogue Special Mode None Game No. 1 Rogue 1 Adventurer 0 Explorer 0 Win Type - Total 0 Types 0/0/0/0/0/0/0/0/0 Lore% 0 Gallery% 4 Achievement% 11 Wizard Run 0 Options --------- ASCII 0 Keyboard 0 Movement Mouse Keybinds 0 Fullscreen 1 Font 18/SmallcapsGlow Map View 76x50 Tactical HUD 1 Map Filters NONE Filters NONE Steam 0 RUN: 35ec1149-7e52-4a44-bb55-d508602cf45f